bitfinex-derivatives/quotes_ETHF0:USTF0_20251007
["timestamp","ask_amount","ask_price","bid_price","bid_amount"]
[1759879446912,3.84612381,4475.1,4475.0,0.8987]
[1759879450513,3.63912381,4475.1,4475.0,0.8987]
[1759879450717,3.20962381,4475.1,4475.0,0.8987]
[1759879450909,3.43362381,4475.1,4475.0,0.8987]
[1759879451516,3.43362381,4475.1,4475.0,1.30073]
[1759879451711,3.20962381,4475.1,4475.0,1.30073]
[1759879451912,0.00182381,4475.1,4475.0,1.30073]
[1759879454818,0.00182381,4475.1,4475.0,42.10073]
[1759879455115,3.2078,4475.6,4475.5,1.30068]
[1759879455417,0.40186,4476.9,4476.5,0.5693]
[1759879455607,0.60736,4476.9,4476.8,0.764]
[1759879456114,0.20788794,4476.9,4476.8,0.76619162]
[1759879456314,0.00238794,4476.9,4476.8,0.76619162]
[1759879458220,0.20788794,4476.9,4476.8,0.76619162]
[1759879458706,0.00238794,4476.9,4476.8,0.76619162]
[1759879460315,0.41488794,4476.9,4476.8,0.76619162]
[1759879461315,0.00238794,4476.9,4476.8,0.76619162]
[1759879463321,0.41488794,4476.9,4476.8,0.76619162]
[1759879463924,8.92451761,4476.9,4476.8,0.00219162]
[1759879464821,3.92451761,4476.9,4476.8,0.00219162]
[1759879465412,3.70051761,4476.9,4476.8,0.00219162]
[1759879465619,3.70051761,4476.9,4476.8,0.54529162]
[1759879465921,3.60571761,4476.9,4476.8,0.54529162]
[1759879466119,3.92451761,4476.9,4476.8,0.00219162]
[1759879466426,3.70051761,4476.9,4476.8,0.00219162]
[1759879466627,3.92451761,4476.9,4476.8,0.00219162]
[1759879467622,3.38171761,4476.9,4476.8,0.52929162]
[1759879467822,0.63888794,4476.9,4476.8,0.74689162]
[1759879468026,0.41488794,4476.9,4476.8,0.74689162]
[1759879468226,0.63888794,4476.9,4476.8,0.74689162]
[1759879468627,0.43188794,4476.9,4476.8,0.74689162]
[1759879468924,0.20788794,4476.9,4476.8,0.74689162]
[1759879469325,0.43188794,4476.9,4476.8,0.74689162]
[1759879470127,0.00238794,4476.9,4476.8,0.74689162]
[1759879472129,0.21788794,4476.9,4476.8,0.52929162]
[1759879472733,0.21788794,4476.9,4476.8,0.74689162]
[1759879472925,0.61974794,4476.9,4476.8,0.74689162]
[1759879473430,1.37574794,4476.9,4476.8,0.00219162]
[1759879473733,0.83087,4475.7,4475.6,0.5271]
[1759879473938,0.83087,4475.7,4475.6,0.3165]
[1759879474134,1.14947,4475.7,4475.6,0.3165]
[1759879474523,1.14947,4475.7,4475.6,0.31888855]
[1759879474927,4.35727,4475.7,4475.6,0.00238855]
[1759879476031,4.26267,4475.7,4475.6,0.52948855]
[1759879476232,4.58127,4475.7,4475.6,0.31888855]
[1759879476435,4.58127,4475.7,4475.6,0.00238855]
[1759879477237,3.8607,4476.3,4476.2,0.7447]
[1759879477441,4.1793,4476.3,4476.2,0.5271]
[1759879477735,7.28128016,4476.3,4476.2,0.3165]
[1759879478036,0.2155,4475.8,4475.7,0.3165]
[1759879478340,0.40196,4475.8,4475.7,0.7447]
[1759879478538,0.4395,4476.0,4475.9,0.7447]
[1759879478943,0.84144,4476.0,4475.9,0.7447]
[1759879479138,1.05484,4476.0,4475.9,0.7447]
[1759879480639,0.83084,4476.0,4475.9,0.7447]
[1759879480841,1.05484,4476.0,4475.9,0.7447]
[1759879481740,1.37354,4476.0,4475.9,0.3165]
[1759879482637,0.40197,4475.7,4475.6,0.00238855]
[1759879482843,1.37107,4475.7,4475.6,0.00238855]
[1759879483140,1.37107,4475.7,4475.6,0.53178855]
[1759879483543,1.37107,4475.7,4475.6,0.00238855]
[1759879483739,1.37107,4475.7,4475.6,0.53178855]
[1759879483942,1.05237,4475.7,4475.6,0.53178855]
[1759879484337,1.05237,4475.7,4475.6,0.75168855]
[1759879484742,0.82837,4475.7,4475.6,0.75168855]
[1759879484948,1.05237,4475.7,4475.6,0.75168855]
[1759879485344,0.82837,4475.7,4475.6,0.75168855]
[1759879485643,1.05237,4475.7,4475.6,0.75168855]
[1759879485843,0.82837,4475.7,4475.6,0.75168855]
[1759879486045,1.05237,4475.7,4475.6,0.75168855]
[1759879486239,0.82837,4475.7,4475.6,0.75168855]
[1759879486544,1.05237,4475.7,4475.6,0.75168855]
[1759879486746,0.40197,4475.7,4475.6,0.75168855]
[1759879487041,0.40196,4475.8,4475.7,0.3192]
[1759879487346,0.40196,4475.8,4475.7,0.7493]
[1759879487545,0.40195,4476.0,4475.7,0.4301]
[1759879487846,3.2078,4476.3,4476.0,0.1293]
[1759879488045,3.82761,4476.3,4476.2,0.7493]
[1759879488240,4.05161,4476.3,4476.2,0.7493]
[1759879488539,0.4264,4475.7,4475.6,0.75168855]
[1759879490139,0.4264,4475.7,4475.0,40.9293]
[1759879490140,3.9529,4475.7,4475.0,0.4485]
[1759879490342,3.9529,4475.7,4474.7,0.3192]
[1759879490343,4.21285,4475.2,4474.7,0.3192]
[1759879490641,4.21285,4475.2,4474.7,0.7493]
[1759879490642,0.82845,4474.8,4474.7,0.7493]
[1759879490835,1.05345,4474.8,4474.7,0.7493]
[1759879491234,1.37215,4474.8,4474.7,0.32138923]
[1759879491833,1.37215,4474.8,4474.7,0.53158923]
[1759879492443,1.37215,4474.8,4474.7,0.32138923]
[1759879492642,1.37215,4474.8,4474.7,0.53158923]
[1759879492840,1.37215,4474.8,4474.7,0.00218923]
[1759879494546,4.23821577,4474.8,4474.7,0.00218923]
[1759879494844,3.69451577,4474.8,4474.7,0.75148923]
[1759879495039,3.91951577,4474.8,4474.7,0.75148923]
[1759879495440,4.23821577,4474.8,4474.7,0.75148923]
[1759879495641,4.23821577,4474.8,4474.7,0.32138923]
[1759879495940,4.01321577,4474.8,4474.7,0.53158923]
[1759879496145,3.91951577,4474.8,4474.7,0.75148923]
[1759879496338,4.23821577,4474.8,4474.7,0.00218923]
[1759879499147,4.23821577,4474.8,4474.7,0.53668923]
[1759879499547,4.23821577,4474.8,4474.7,0.00218923]
[1759879499746,4.23821577,4474.8,4474.7,0.32168923]
[1759879499944,4.23821577,4474.8,4474.7,0.00218923]
[1759879500448,4.23821577,4474.8,4474.7,0.32168923]
[1759879501638,4.23821577,4474.8,4474.7,0.00218923]
[1759879502148,4.01321577,4474.8,4474.7,0.00218923]
[1759879502448,4.23821577,4474.8,4474.7,0.32168923]
[1759879503648,4.23821577,4474.8,4474.7,0.00218923]
[1759879504545,4.01321577,4474.8,4474.7,0.00218923]
[1759879504850,4.23821577,4474.8,4474.7,0.53668923]
[1759879505040,4.23821577,4474.8,4474.7,0.00218923]
[1759879505445,4.23821577,4474.8,4474.7,0.53668923]
[1759879505749,4.23821577,4474.8,4474.7,0.00218923]
[1759879508146,3.69451577,4474.8,4474.7,0.76218923]
[1759879508346,3.91951577,4474.8,4474.7,0.76218923]
[1759879509349,3.91951577,4474.8,4474.7,0.53668923]
[1759879509554,3.91951577,4474.8,4474.7,0.32168923]
[1759879509555,4.01321577,4474.8,4474.7,0.32168923]
[1759879509758,4.23821577,4474.8,4474.7,0.32168923]
[1759879510551,4.01321577,4474.8,4474.7,0.32168923]
[1759879510758,4.23821577,4474.8,4474.7,0.32168923]
[1759879511754,4.23821577,4474.8,4474.7,0.53668923]
[1759879511960,3.91951577,4474.8,4474.7,0.76218923]
[1759879512659,3.69451577,4474.8,4474.7,0.76218923]
[1759879512960,4.23821577,4474.8,4474.7,0.00218923]
[1759879513157,4.23821577,4474.8,4474.7,0.32168923]
[1759879513659,4.01321577,4474.8,4474.7,0.53668923]
[1759879513859,4.23821577,4474.8,4474.7,0.53668923]
[1759879514470,3.2078,4475.7,4475.5,0.1349]
[1759879514652,3.2078,4475.7,4475.6,0.76]
[1759879515459,3.60971,4476.4,4476.1,0.40193]
[1759879515659,3.60971,4476.4,4476.3,0.76]
[1759879515959,0.40189,4476.6,4476.3,0.76]
[1759879516263,3.2078,4477.1,4476.3,0.76]
[1759879516264,0.62687,4476.8,4476.7,0.76]
[1759879518566,0.40188,4476.6,4476.1,3.38443287]
[1759879518768,0.40196,4475.8,4475.6,0.3195]
[1759879518959,0.40196,4475.8,4475.5,3.3427]
[1759879518960,0.40196,4475.8,4475.7,0.76]
[1759879519467,0.84286,4475.8,4475.7,0.76]
[1759879520270,3.2078,4475.9,4475.7,0.4405]
[1759879520572,3.6097,4476.4,4476.3,0.76]
[1759879520769,5.14729795,4476.4,4476.3,0.3195]
[1759879522167,0.40197,4475.8,4475.6,0.3195]
[1759879522370,0.84787,4475.8,4475.7,0.76]
[1759879523073,0.62192,4475.1,4475.0,0.6694]
[1759879523272,0.62192,4475.1,4475.0,0.8949]
[1759879523467,0.40202,4475.1,4475.0,0.8949]
[1759879523862,0.62192,4475.1,4475.0,0.8949]
[1759879525377,0.84292,4475.1,4475.0,0.8949]
[1759879526174,0.84295,4474.8,4474.7,0.32168923]
[1759879526374,1.16165,4474.8,4474.7,0.53668923]
[1759879526677,1.16165,4474.8,4474.7,0.00218923]
[1759879528282,1.7126182,4474.8,4474.7,0.00218923]
[1759879530776,9.67614846,4474.8,4474.7,0.00218923]
[1759879531674,9.90214846,4474.8,4474.7,0.00218923]
[1759879532384,9.67614846,4474.8,4474.7,0.00218923]
[1759879532573,9.90214846,4474.8,4474.7,0.00218923]
[1759879533982,0.4426,4473.6,4473.5,3.2078]
[1759879534177,0.9848,4473.6,4473.5,3.2078]
[1759879534382,0.9848,4473.6,4473.5,3.7501]
[1759879534583,0.9848,4473.6,4473.5,3.8789]
[1759879534781,0.6686,4473.6,4473.5,4.0855]
[1759879534980,0.67136777,4473.6,4473.5,4.08804354]
[1759879535283,0.98756777,4473.6,4473.5,3.67294354]
[1759879535478,0.67136777,4473.6,4473.5,3.88144354]
[1759879535673,0.67136777,4473.6,4473.5,4.08804354]
[1759879536183,0.67136777,4473.6,4472.9,0.77125711]
[1759879536184,0.4426,4473.0,4472.9,0.77125711]
[1759879536384,0.6676,4473.0,4472.9,0.77125711]
[1759879537079,0.6676,4473.0,4472.9,0.77316603]
[1759879537379,0.4426,4473.0,4472.9,0.77316603]
[1759879537577,0.9879,4473.0,4472.9,0.77316603]
[1759879537778,0.9879,4473.0,4472.9,0.35806603]
[1759879537973,4.1957,4473.0,4472.9,0.02426603]
[1759879538188,4.301,4473.0,4472.9,0.02426603]
[1759879538679,0.8449,4472.0,4471.9,0.7489]
[1759879538878,0.4023,4472.0,4471.9,0.7489]
[1759879539078,0.62618,4472.2,4472.1,0.7489]
[1759879539277,0.4316,4471.7,4471.6,0.3083]
[1759879539482,0.7429,4471.7,4471.6,0.5294]
[1759879539678,0.7429,4471.7,4471.6,0.30992469]
[1759879539882,0.4316,4471.7,4471.6,0.75472469]
[1759879540489,0.2141,4471.7,4471.6,0.75472469]
[1759879540677,0.4391,4471.7,4471.6,0.75472469]
[1759879541279,0.6566,4471.7,4471.6,0.75472469]
[1759879541879,0.4316,4471.7,4471.6,0.75472469]
[1759879542082,3.2078,4472.5,4472.4,0.4448]
[1759879542281,3.4219,4472.5,4472.4,0.7531]
[1759879542487,3.2078,4472.5,4472.4,0.7531]
[1759879543288,3.4219,4472.5,4472.4,0.7531]
[1759879543586,3.6394,4472.5,4472.4,0.7531]
[1759879543784,3.9507,4472.5,4472.4,0.3083]
[1759879543982,0.2141,4471.9,4471.8,0.84711]
[1759879544183,3.5191,4472.5,4471.8,0.84711]
[1759879544379,0.61638,4472.3,4472.2,0.2211]
[1759879544589,0.61638,4472.3,4472.2,0.7531]
[1759879545088,0.4391,4472.3,4472.2,0.7531]
[1759879545386,0.225,4472.3,4472.2,0.7531]
[1759879545685,3.2078,4472.5,4472.2,1.15538]
[1759879545886,0.61631,4473.1,4473.0,0.4448]
[1759879546187,0.61631,4473.1,4473.0,0.8869]
[1759879546388,1.05881,4473.1,4473.0,0.8869]
[1759879546590,1.37011,4473.1,4473.0,0.8869]
[1759879546885,1.14511,4473.1,4473.0,0.5294]
[1759879547388,0.40221,4473.1,4473.0,0.8869]
[1759879547682,0.62721,4473.1,4473.0,0.8869]
[1759879547883,3.2078,4473.3,4473.2,0.7531]
[1759879548084,0.40492777,4473.6,4473.5,0.8869]
[1759879548482,0.00276777,4473.6,4473.5,0.8869]
[1759879548682,0.22776777,4473.6,4473.5,0.8869]
[1759879548989,0.40219,4473.3,4472.9,0.3083]
[1759879549285,0.4316,4473.3,4473.2,0.7531]
[1759879549480,0.4391,4473.3,4473.2,0.7531]
[1759879549680,0.40218,4473.4,4473.2,0.7531]
[1759879549886,0.225,4473.4,4473.3,0.7531]
[1759879550682,0.40217,4473.5,4473.4,0.5294]
[1759879550887,0.62717,4473.5,4473.4,0.7531]
[1759879551077,0.84127,4473.5,4473.4,0.7531]
[1759879552382,1.39168633,4473.5,4473.4,0.7531]
[1759879552790,0.4316,4471.8,4470.8,1.99851374]
[1759879553083,6.060599,4471.7,4471.6,0.44642469]
[1759879553291,0.3113,4471.7,4471.6,0.44642469]
[1759879556289,0.5254,4471.7,4471.6,0.44642469]
[1759879556681,0.7429,4471.7,4471.6,0.00162469]
[1759879556883,0.9679,4471.7,4471.6,0.00162469]
[1759879557089,0.3113,4471.7,4471.6,0.43882469]
[1759879557288,0.3113,4471.7,4471.6,0.60162469]
[1759879557582,0.5354,4471.7,4471.6,0.43882469]
[1759879560582,3.2078,4472.3,4472.0,0.5869]
[1759879560789,3.61007,4472.3,4472.2,0.4241]
[1759879560991,3.91707,4472.3,4472.2,0.4241]
[1759879561290,4.14117,4472.3,4472.2,0.4241]
[1759879561483,4.36497,4472.3,4472.2,0.4241]
[1759879562483,3.7389,4472.3,4472.2,0.4241]
[1759879562689,3.5148,4472.3,4472.2,0.4241]
[1759879563190,3.7389,4472.3,4472.2,0.4241]
[1759879563586,0.40224,4472.7,4472.6,0.5869]
[1759879563887,0.95382343,4472.7,4472.6,0.5869]
[1759879564089,0.55158343,4472.7,4472.6,0.5869]
[1759879564286,1.58520392,4475.0,4474.0,0.40212]
[1759879564485,0.307,4475.9,4475.5,0.40198]
[1759879564682,0.1303,4476.0,4475.6,40.8]
[1759879564886,0.307,4476.4,4475.8,3.2078]
[1759879565091,0.1303,4476.5,4476.3,3.2078]
[1759879565287,0.00194609,4476.5,4476.4,46.025]
[1759879565591,0.00194609,4476.5,4476.4,46.4269]
[1759879567182,0.1303,4477.0,4476.9,0.40186]
[1759879567383,0.1303,4477.0,4476.9,3.60966]
[1759879567887,0.4373,4477.0,4476.9,3.2078]
[1759879568391,0.4390707,4477.0,4476.9,3.2078]
[1759879571587,0.4390707,4477.0,4476.9,3.54115822]
[1759879574492,0.1303,4477.5,4476.9,3.54115822]
[1759879574692,1.18854123,4477.2,4477.1,0.99954933]
[1759879574989,0.1303,4477.5,4477.1,1.15606755]
[1759879574990,1.18854123,4477.4,4477.1,1.15606755]
[1759879575290,0.022,4477.9,4477.2,0.93019185]
[1759879575486,0.02430869,4477.9,4477.8,3.2078]
[1759879575688,0.02430869,4477.9,4477.8,3.76615822]
[1759879576191,4.35185,4479.6,4477.8,3.76615822]
[1759879576392,0.2241,4478.8,4478.7,3.2078]
[1759879576588,0.5311,4478.8,4478.7,3.54115822]
[1759879576787,1.71964123,4478.8,4478.7,3.54115822]
[1759879577192,1.49755527,4478.8,4478.7,3.54115822]
[1759879577491,1.94545527,4478.8,4478.7,3.54115822]
[1759879577891,1.94545527,4478.8,4478.7,0.33335822]
[1759879578095,6.94545527,4478.8,4478.7,0.33335822]
[1759879579291,0.7549,4477.8,4477.7,3.2078]
[1759879579497,0.307,4477.8,4477.7,3.2078]
[1759879579690,3.91850404,4478.8,4478.2,0.40173]
[1759879579886,0.307,4478.4,4478.3,0.225]
[1759879580291,0.307,4478.4,4478.3,41.025]
[1759879580796,0.307,4478.4,4478.3,0.225]
[1759879581593,0.4373,4478.5,4478.3,0.225]
[1759879581896,0.1303,4478.5,4478.3,0.62673]
[1759879582098,0.307,4478.4,4478.3,0.62673]
[1759879582897,0.307,4478.4,4476.9,3.2078]
[1759879582898,0.1303,4477.0,4476.9,3.2078]
[1759879583097,0.4373,4477.0,4476.9,3.2078]
[1759879583496,0.1303,4476.5,4476.3,0.00289873]
[1759879583692,0.307,4476.4,4476.3,0.00289873]
[1759879583999,0.7089,4476.4,4476.3,0.00289873]
[1759879585293,0.7089,4476.4,4475.1,0.17906079]
[1759879585294,0.1303,4476.0,4475.1,0.17906079]
[1759879585593,8.92231874,4476.4,4475.2,0.3091]
[1759879585594,6.35034874,4475.9,4475.2,0.3091]
[1759879585795,0.402,4475.4,4475.2,0.3091]
[1759879586095,0.402,4475.4,4475.0,0.92304575]
[1759879586096,0.40202,4475.2,4475.1,0.3091]
[1759879586296,0.4039956,4475.2,4475.1,0.31127166]
[1759879587096,0.7235956,4475.2,4475.1,0.31127166]
[1759879587295,0.4039956,4475.2,4475.1,0.31127166]
[1759879587598,0.4039956,4475.2,4475.1,1.10821741]
[1759879588297,0.4039956,4475.2,4475.1,0.31127166]
[1759879588691,0.4039956,4475.2,4475.1,1.10506536]
[1759879588896,0.4039956,4475.2,4475.1,0.31127166]
[1759879589600,0.0019756,4475.2,4475.1,0.31127166]
[1759879589899,3.60975,4475.9,4475.5,0.1229]
[1759879590106,3.60975,4475.9,4475.6,0.3074]
[1759879590292,3.60975,4475.9,4475.6,41.1074]
[1759879590498,3.60975,4475.9,4475.7,0.3074]
[1759879590901,3.61139005,4475.9,4475.7,0.3074]
[1759879591903,3.20944005,4475.9,4475.7,0.3074]
[1759879592401,3.61139005,4475.9,4475.7,0.3074]
[1759879592801,3.20944005,4475.9,4475.8,0.225]
[1759879593003,3.20944005,4475.9,4475.8,0.5324]
[1759879593600,0.00164005,4475.9,4475.8,0.5324]
[1759879593805,0.00164005,4475.9,4475.8,5.5324]
[1759879594007,0.00164005,4475.9,4475.8,0.5324]
[1759879594704,3.2078,4477.0,4476.1,0.40193]
[1759879595010,3.2078,4477.0,4476.6,0.3074]
[1759879595011,0.40188,4476.7,4476.6,0.3074]
[1759879595906,0.72374488,4476.7,4476.6,0.3074]
[1759879598209,0.40414488,4476.7,4476.6,0.3074]
[1759879598907,0.40186,4476.9,4476.6,0.3074]
[1759879599100,0.40186,4476.9,4476.6,0.40188]
[1759879599407,0.40186,4476.9,4476.7,0.3074]
[1759879599908,0.40392433,4476.9,4476.7,0.3074]
[1759879600211,0.40392433,4476.9,4476.6,0.3325]
[1759879600212,0.40188,4476.7,4476.6,0.3325]
[1759879600706,0.40187,4476.8,4476.6,0.3325]
[1759879601100,0.40393433,4476.9,4476.6,0.73438]
[1759879601300,0.00206433,4476.9,4476.6,0.3325]
[1759879602007,0.40188,4476.7,4476.6,0.3325]
[1759879605105,0.325,4476.8,4476.0,0.7937937]
[1759879605311,0.40192,4476.2,4476.0,0.9282937]
[1759879605911,0.40192,4476.2,4476.1,0.3325]
[1759879607807,0.40192,4476.2,4476.1,0.7851]
[1759879609310,0.40194,4476.0,4475.9,4.0015937]
[1759879609615,1.17024,4476.0,4475.9,4.0015937]
[1759879610417,1.17024,4476.0,4475.9,3.2078]
[1759879610717,1.17024,4476.0,4475.9,4.00859103]
[1759879610919,1.17024,4476.0,4475.9,4.56709103]
[1759879611210,0.84524,4476.0,4475.9,4.79369103]
[1759879611417,0.40194,4476.0,4475.9,3.9929]
[1759879612314,0.40194,4476.0,4475.9,5.19562973]
[1759879613317,0.40194,4476.0,4475.9,3.9929]
[1759879613518,0.62574,4476.0,4475.9,1.98846599]
[1759879613816,0.40196,4475.8,4475.7,1.20336599]
[1759879614014,1.17026,4475.8,4475.7,1.20336599]
[1759879614821,1.17026,4475.8,4475.6,1.60363964]
[1759879615118,0.7683,4475.7,4475.6,1.60363964]
[1759879615317,0.2238,4475.3,4475.2,0.225]
[1759879615615,0.84529,4475.4,4475.3,0.5585]
[1759879616023,0.84529,4475.4,4475.3,0.7851]
[1759879616420,1.17031,4475.2,4475.1,2.0006854]
[1759879616614,1.17031,4475.2,4475.1,0.33467166]
[1759879617119,0.40206,4474.7,4474.6,1.99851374]
[1759879617319,1.15576,4474.7,4474.6,1.99851374]
[1759879617812,1.15576,4474.7,4474.5,2.30641374]
[1759879618013,1.15576,4474.7,4474.6,0.3079]
[1759879618213,1.15576,4474.7,4474.6,2.00125329]
[1759879618413,1.15581,4474.1,4474.0,2.78215601]
[1759879618619,4.58861,4474.1,4474.0,1.60661861]
[1759879618821,12.4270016,4474.1,4474.0,1.60661861]
[1759879619120,0.3147,4474.0,4473.9,1.60661861]
[1759879619325,0.7537,4474.0,4473.9,1.60859998]
[1759879619622,8.82872432,4474.0,4473.9,0.00198137]
[1759879619817,8.38972432,4474.0,4473.9,0.00198137]
[1759879621614,8.61472432,4474.0,4473.9,0.00198137]
[1759879622020,2.95242432,4474.0,4473.9,0.30988137]
[1759879622228,3.2078,4474.1,4474.0,0.4307]
[1759879625022,3.2078,4474.1,4473.9,0.00198137]
[1759879625023,0.71682,4474.0,4473.9,0.00198137]
[1759879625920,8.66061415,4474.0,4473.9,0.00198137]
[1759879627928,9.09961415,4474.0,4473.9,0.00198137]
[1759879631727,0.62062,4474.0,4473.9,0.73418137]
[1759879633221,3.60991,4474.1,4474.0,0.6497]
[1759879633421,3.60991,4474.1,4474.0,0.855]
[1759879633628,3.2078,4474.1,4474.0,5.855]
[1759879635330,0.62062,4474.0,4473.9,0.00198137]
[1759879635533,1.15582,4474.0,4473.9,0.30988137]
[1759879635831,1.15582,4474.0,4473.9,0.73418137]
[1759879635832,0.84112,4474.0,4473.9,0.73418137]
[1759879636922,1.38182,4474.0,4473.9,0.00198137]
[1759879637126,4.35535339,4474.0,4473.9,0.00198137]
[1759879639338,3.93625339,4474.0,4473.9,0.52888137]
[1759879639534,4.35435339,4474.0,4473.9,0.00198137]
[1759879639927,4.12935339,4474.0,4473.9,0.00198137]
[1759879640132,3.93625339,4474.0,4473.9,0.52888137]
[1759879640426,1.06612,4474.0,4473.9,0.52888137]
[1759879640833,0.62062,4474.0,4473.9,0.73418137]
[1759879641034,0.62712,4474.0,4473.9,0.73418137]
[1759879641637,0.40212,4474.0,4473.9,0.73418137]
[1759879643938,1.15582,4474.0,4473.9,0.00198137]
[1759879644238,1.06612,4474.0,4473.9,0.73418137]
[1759879644731,0.84112,4474.0,4473.9,0.73418137]
[1759879645940,0.2185,4474.0,4473.9,0.73418137]
[1759879646137,3.2078,4474.1,4474.0,0.855]
[1759879646331,1.00497,4475.5,4474.5,0.855]
[1759879646332,3.60986,4474.6,4474.5,0.855]
[1759879646736,3.2078,4474.6,4474.5,0.855]
[1759879646930,3.60986,4474.6,4474.5,5.855]
[1759879647532,3.2078,4474.6,4474.5,5.855]
[1759879647733,3.4328,4475.2,4475.1,0.4318]
[1759879647934,0.40201,4475.2,4475.1,0.4318]
[1759879648528,3.43,4475.8,4475.7,0.7533]
[1759879648729,3.70731241,4475.8,4475.7,0.7533]
[1759879649945,4.10927241,4475.8,4475.7,0.7533]
[1759879650838,4.10930182,4475.8,4475.7,0.7533]
[1759879654934,4.33150182,4475.8,4475.7,0.7533]
[1759879656046,4.33150182,4475.8,4475.7,0.5464]
[1759879656047,4.53630182,4475.8,4475.7,0.5464]
[1759879656245,0.40202,4475.1,4475.0,0.8828]
[1759879659637,0.62422,4475.1,4475.0,0.8828]
[1759879660049,0.40202,4475.1,4475.0,0.8828]
[1759879660544,3.2078,4475.2,4475.1,0.3328]
[1759879660750,0.402,4475.3,4475.2,0.7634]
[1759879661155,0.40197,4475.6,4475.5,0.8957]
[1759879661951,0.40197,4475.6,4475.5,1.07781999]
[1759879662452,3.2078,4475.7,4475.6,0.7634]
[1759879662650,3.60977,4475.7,4475.6,0.7634]
[1759879662953,3.2078,4475.7,4475.6,5.7634]
[1759879663251,0.3181,4476.4,4475.6,5.225]
[1759879663447,0.40189,4476.6,4476.3,0.40191]
[1759879663643,0.40187,4476.8,4476.4,0.6269]
[1759879663844,0.40188,4476.7,4476.4,41.4269]
[1759879664242,0.00206433,4476.9,4476.6,0.40188]
[1759879664451,0.00206433,4476.9,4476.7,0.40187]
[1759879665452,0.40392433,4476.9,4476.5,0.40189]
[1759879665658,0.4528,4476.5,4476.4,40.8]
[1759879665959,0.4528,4476.5,4476.4,41.025]
[1759879668359,0.32016433,4476.9,4476.7,0.40187]
[1759879668554,0.32016433,4476.9,4476.8,3.4328]
[1759879669757,0.75956433,4476.9,4476.8,3.2078]
[1759879670057,0.75956433,4476.9,4476.6,0.225]
[1759879670058,0.7575,4476.7,4476.6,0.225]
[1759879672254,0.5374,4476.7,4476.6,0.225]
[1759879673058,0.3181,4476.7,4476.6,0.225]
[1759879674053,0.7575,4476.7,4476.4,0.4019]
[1759879674261,0.3181,4476.4,4476.3,3.2078]
[1759879674557,0.5374,4476.4,4476.3,3.4328]
[1759879674860,0.7575,4476.4,4476.3,3.4328]
[1759879675559,0.7575,4476.4,4476.3,0.225]
[1759879676861,0.7575,4476.4,4476.3,3.4328]
[1759879678661,0.3181,4476.4,4476.3,3.4328]
[1759879680963,0.3181,4476.4,4476.3,3.83471]
[1759879681759,0.00206433,4476.9,4476.8,0.40187]
[1759879682065,3.2078,4477.6,4477.2,0.40182]
[1759879682265,0.5244,4477.5,4477.3,0.225]
[1759879682461,0.7427,4477.5,4477.3,0.225]
[1759879682663,0.3409,4477.5,4477.3,0.225]
[1759879683166,0.1254107,4477.5,4477.4,0.40181]
[1759879683368,0.62767751,4477.5,4477.4,0.40181]
[1759879683967,0.4391107,4477.5,4477.4,0.40181]
[1759879684358,0.94145341,4477.5,4477.4,0.40181]
[1759879685062,0.94145341,4477.5,4477.3,0.62843715]
[1759879685271,0.3137,4477.4,4477.3,0.62843715]
[1759879686066,0.1254107,4477.5,4477.4,0.40181]
[1759879686272,0.62778254,4477.5,4477.4,0.40181]
[1759879687073,0.50518254,4477.5,4477.4,0.40181]
[1759879687970,0.81888254,4477.5,4477.4,0.40181]
[1759879688671,0.81888254,4477.5,4477.3,0.22661715]
[1759879688871,0.50237184,4477.4,4477.3,0.22661715]
[1759879689176,0.50237184,4477.4,4477.3,0.62843715]
[1759879689669,0.90418184,4477.4,4477.3,0.22661715]
[1759879689875,1.64288184,4477.4,4477.3,0.22661715]
[1759879691774,1.24107184,4477.4,4477.3,0.22661715]
[1759879691976,1.64288184,4477.4,4477.3,0.22661715]
[1759879694480,1.24107184,4477.4,4477.3,0.22661715]
[1759879694679,1.64288184,4477.4,4477.3,0.22661715]
[1759879695774,1.64288184,4477.4,4477.3,0.00161715]
[1759879696378,1.14058,4476.7,4476.6,0.225]
[1759879696572,1.64295184,4476.7,4476.6,0.225]
[1759879697180,1.64295184,4476.7,4476.6,0.22681419]
[1759879701082,1.03437184,4476.7,4476.6,0.62869419]
[1759879701289,0.40185,4477.0,4476.7,0.40188]
[1759879701482,0.3137,4477.4,4476.9,3.2078]
[1759879701677,0.50398773,4477.3,4476.9,3.2078]
[1759879701884,0.50398773,4477.2,4477.1,0.40184]
[1759879702076,0.81768773,4477.2,4477.1,0.40184]
[1759879702482,0.50398773,4477.2,4477.1,0.40184]
[1759879702881,0.81768773,4477.2,4477.1,0.40184]
[1759879703083,0.50398773,4477.2,4477.1,0.40184]
[1759879704398,0.1307,4477.0,4476.9,3.2078]
[1759879704583,0.6627,4477.0,4476.9,3.4328]
[1759879704784,0.4444,4477.0,4476.9,3.4328]
[1759879705089,0.4444,4477.0,4476.9,44.2328]
[1759879705286,0.94833511,4477.0,4476.9,44.2328]
[1759879706590,0.4444,4477.0,4476.9,44.2328]
[1759879707486,0.94805887,4477.0,4476.9,3.2078]
[1759879707682,1.37185887,4477.0,4476.9,0.225]
[1759879708088,1.77357131,4477.0,4476.9,0.225]
[1759879708782,1.15388,4476.7,4476.6,0.00181419]
[1759879708982,1.65740131,4476.7,4476.6,0.00181419]
[1759879715601,1.65802813,4476.7,4476.6,0.00181419]
[1759879721203,1.15388,4476.7,4476.6,0.00181419]
[1759879726208,1.16977,4475.7,4475.6,3.2078]
[1759879727003,1.16977,4475.7,4475.6,3.21024749]
[1759879727704,0.7678,4475.7,4475.6,3.21024749]
[1759879727908,1.16977,4475.7,4475.6,3.21024749]
[1759879729005,0.3341,4475.7,4475.6,3.43524749]
[1759879729306,0.40197,4475.7,4475.6,3.43524749]
[1759879729608,0.73607,4475.7,4475.6,3.43524749]
[1759879734718,1.16977,4475.7,4475.6,3.21024749]
[1759879735109,1.16977,4475.7,4475.6,0.00244749]
[1759879738914,0.95927,4475.7,4475.6,0.00244749]
[1759879739316,1.17477,4475.7,4475.6,0.00244749]
[1759879739618,0.73607,4475.7,4475.6,0.00244749]